[Event "Sautron op 16th"]
[Site "Sautron"]
[Date "2016.10.22"]
[Round "5.2"]
[White "Stets, Dmitry"]
[Black "Koziak, Vitali"]
[Result "1/2-1/2"]
[ECO "C69"]
[WhiteElo "2436"]
[BlackElo "2479"]
[Annotator "RR"]
[PlyCount "51"]
[EventDate "2016.10.22"]
[EventType "swiss"]
[EventRounds "9"]
[EventCountry "FRA"]
[SourceTitle "EXT 2019"]
[Source "ChessBase"]
[SourceDate "2018.10.10"]
[SourceVersion "1"]
[SourceVersionDate "2018.10.10"]
[SourceQuality "1"]
[TimeControl "40/5400+30:1800+30"]
[WhiteClock "0:53:04"]
[BlackClock "0:34:40"]

1. e4 {[%emt 0:00:00]} e5 {[%emt 0:00:00]} 2. Nf3 {[%emt 0:00:00]} Nc6 {
[%emt 0:00:00]} 3. Bb5 {[%emt 0:01:09]} a6 {[%emt 0:00:00]} 4. Bxc6 {[%emt 0:
02:55]} dxc6 {[%emt 0:00:08]} 5. O-O {[%emt 0:00:12]} f6 {[%emt 0:00:19] La
grande ligne de la variante d'échange} 6. d4 {[%emt 0:01:15]} exd4 {[%emt 0:
00:13]} 7. Nxd4 {[%emt 0:00:57]} c5 {[%emt 0:02:37]} 8. Nb3 {[%emt 0:00:59]} (
8. Ne2 {L'alternative} Qxd1 9. Rxd1 Bd7 10. Nbc3 O-O-O 11. Be3 Re8 12. Rd2 Bc6
13. Rad1 b6 14. f3 Ne7 15. Nf4 Ng6 16. Nxg6 hxg6 17. Bf4 g5 $132) 8... Qxd1 {
[%emt 0:01:21]} 9. Rxd1 {[%emt 0:00:11]} Bd6 {[%emt 0:01:03]} 10. Na5 {[%emt 0:
10:01] Après une longue réflexion mais la position reste connue} b5 {[%emt 0:
07:47]} 11. c4 {[%emt 0:02:21]} Ne7 {[%emt 0:13:06]} 12. Be3 {[%emt 0:09:10]} (
12. Nc3 Rb8 13. Be3 Be6 14. Rac1 Kf7 15. b3 Rhd8 16. Nd5 Rd7 17. f4 Rbd8 18.
Nb7 Rb8 19. Nxc5 Bxc5 20. Bxc5 Nxd5 21. cxd5 Bg4 22. Re1 Ke8 23. Bb4 Kd8 24.
Rc6 f5 25. h3 Bh5 26. exf5 Rxd5 27. Ba5 Rb7 28. Rxa6 b4 29. Re4 Rdb5 30. Rd4+
Ke8 31. Re6+ Kf8 32. Rd8+ Kf7 33. Rd7+ Kf8 34. Bxc7 h6 35. Bd6+ Kg8 36. Rxb7
Rxb7 37. Re4 Ra7 38. Rxb4 Rxa2 39. Rb8+ Kh7 40. Rb7 Be8 41. Rc7 Rd2 {Guseinov,
G (2634)-Bachmann,A (2593) Berlin 2015 1-0}) 12... f5 {[%emt 0:09:53]} (12...
Rb8) 13. Nc3 {[%emt 0:04:10]} f4 {[%emt 0:03:38]} 14. e5 {[%emt 0:02:59] Une
idée du spécialiste de la variante d'échange jouée aux olympiades de la
Havane} Bxe5 {[%emt 0:07:29]} (14... fxe3 15. exd6 exf2+ 16. Kxf2 O-O+ 17. Kg1
cxd6 18. Rxd6 {Teterev,V (2507)-Novitzkij,D (2373) BLR-ch Minsk 2006 (11) 1/2})
15. Bxc5 {[%emt 0:00:14]} Bxc3 {[%emt 0:01:57]} 16. bxc3 {[%emt 0:00:10]} Ng6 {
[%emt 0:01:08]} 17. Nc6 {[%emt 0:06:37]} Bd7 $5 $146 {[%emt 0:09:25] Une
nouveauté sugérée dans l'informateur n°2 mais proablement trouvée devant
l'échiquier car les Noirs ont dépensé près de 10 mns} (17... Be6 18. cxb5
axb5 19. Na7 Rb8 20. Rdb1 Kf7 21. Nxb5 Rhd8 22. Rb4 Bxa2 23. Nxc7 Rbc8 24. h4
Rd2 25. Bb6 f3 26. Be3 Re2 27. Nb5 Ra8 28. h5 Ne5 29. Rf4+ Ke7 30. Rd1 Rc8 31.
Re4 Kf6 32. Rd6+ Kf5 33. Rf4+ Kg5 34. Rxf3+ {1-0 (34) Fischer,R-Portisch,L
Havana 1966}) 18. Re1+ {[%emt 0:01:50]} Kf7 {[%emt 0:01:19]} 19. Ne5+ {[%emt 0:
00:14]} Nxe5 {[%emt 0:00:07]} 20. Rxe5 {[%emt 0:00:05]} Rhe8 {[%emt 0:00:30]}
21. Rae1 {[%emt 0:00:29]} Rxe5 {[%emt 0:01:08]} 22. Rxe5 {[%emt 0:00:19]} Re8 {
[%emt 0:02:03]} 23. Rxe8 {[%emt 0:01:54]} Bxe8 {[%emt 0:00:15]} 24. f3 {
[%emt 0:00:41]} bxc4 {[%emt 0:01:51] Avec des B de couleurs opposées, le P
gagné a peu de chances d'être valorisé} 25. Bd4 {[%emt 0:00:20]} g5 {
[%emt 0:00:33]} 26. Be5 {[%emt 0:00:44]} 1/2-1/2

[Event "Sautron op 13th"]
[Site "Sautron"]
[Date "2013.10.28"]
[Round "3"]
[White "Kasparov, Sergey"]
[Black "Migot, Tangi"]
[Result "1-0"]
[ECO "C69"]
[WhiteElo "2480"]
[BlackElo "2354"]
[Annotator "RR"]
[PlyCount "99"]
[EventDate "2013.10.26"]
[EventType "swiss"]
[EventRounds "9"]
[EventCountry "FRA"]
[SourceTitle "EXT 2016"]
[Source "ChessBase"]
[SourceDate "2015.10.08"]
[SourceVersion "1"]
[SourceVersionDate "2015.10.08"]
[SourceQuality "1"]
[TimeControl "40/5400+30:1800+30"]
[WhiteClock "1:30:00"]
[BlackClock "1:30:00"]

1. e4 {[%emt 0:00:00]} e5 {[%emt 0:00:00]} 2. Nf3 {[%emt 0:00:00]} Nc6 {
[%emt 0:00:00]} 3. Bb5 {[%emt 0:00:00]} a6 {[%emt 0:00:21]} 4. Bxc6 {[%emt 0:
00:00]} dxc6 {[%emt 0:00:06]} 5. O-O {[%emt 0:00:00]} f6 {[%emt 0:01:27]} 6. d4
{[%emt 0:00:05]} Bg4 {[%emt 0:00:07]} 7. dxe5 {[%emt 0:00:05]} (7. c3) 7...
Qxd1 {[%emt 0:00:29]} 8. Rxd1 {[%emt 0:00:02]} fxe5 {[%emt 0:00:08]} 9. Nbd2 {
[%emt 0:00:05]} O-O-O {[%emt 0:01:57]} 10. Re1 {[%emt 0:00:54]} Bd6 {[%emt 0:
00:25]} 11. h3 {[%emt 0:00:11]} Bh5 {[%emt 0:02:13]} 12. Nh4 {[%emt 0:00:28]}
Ne7 {[%emt 0:05:54]} 13. Nc4 {[%emt 0:02:24]} (13. Ndf3 Rd7 14. g4 Bf7 15. b3
h5 16. Bb2 hxg4 17. hxg4 c5 18. Kg2 Nc6 19. Rh1 Rf8 20. Nf5 g6 21. Nxd6+ cxd6
22. Ng5 d5 23. Nh7 Rfd8 24. Nf6 Rd6 25. Nxd5 Bxd5 26. exd5 Rxd5 27. Rae1 Rd2
28. Bxe5 Nxe5 29. Rxe5 Rxc2 30. Rh7 Rf8 31. Kg3 Rcxf2 32. Rg7 Kb8 33. Kh4 Rxa2
34. Ree7 b5 35. Kg5 Ra3 36. Rb7+ Ka8 37. Ra7+ Kb8 38. Rgb7+ Kc8 39. Re7 Kb8 40.
Rab7+ Ka8 41. Ra7+ Kb8 42. Reb7+ Kc8 {Rause,O (2720)-Piccardo,V (2574) ICCF
corr 2003 1/2-1/2}) 13... h6 {[%emt 0:02:32]} 14. Nf5 {[%emt 0:01:42]} Nxf5 {
[%emt 0:00:23]} 15. exf5 {[%emt 0:00:05]} Rhe8 {[%emt 0:00:32]} 16. Nxd6+ {
[%emt 0:00:56]} cxd6 {[%emt 0:09:25]} 17. f4 {[%emt 0:01:10]} exf4 {[%emt 0:21:
02]} 18. Bxf4 {[%emt 0:00:46]} Kd7 $146 {[%emt 0:03:28] La tentative
d'amélioration sur une partie précédente du GMI} (18... Bf7 19. b3 Bd5 20.
c4 Be4 21. g4 b5 22. Rad1 d5 23. cxd5 Bxd5 24. Kf2 Be4 25. Rd2 Bd5 26. Rde2
Rxe2+ 27. Rxe2 Kd7 28. Be5 Rg8 29. b4 Bc4 30. Re3 g6 31. f6 Re8 32. a3 h5 33.
Kg3 hxg4 34. hxg4 g5 35. Kf2 Bd5 36. Kg3 Bc4 37. Kf3 Ke6 38. Bd6+ Kf7 39. Be7
Rh8 40. Re5 Bd5+ 41. Kg3 Kg6 42. f7 Kxf7 43. Bxg5 Rh1 44. Re7+ Kg6 45. Be3 Ra1
46. Bd4 Rd1 47. Be5 Rg1+ 48. Kh4 {Kasparov,S (2504)-Sangma,R (2358)
Bhubaneswar 2010 1/2-1/2}) 19. g4 $1 {[%emt 0:07:03] Gagne de l'espace et les
Blancs ont des petites chances de gain} Bf7 {[%emt 0:00:30]} 20. Kf2 {[%emt 0:
00:18]} c5 {[%emt 0:09:43]} 21. a3 {[%emt 0:04:17]} (21. Rad1 Kc6 (21... d5 22.
Be5 {[%csl Rg7]})) 21... Rxe1 {[%emt 0:02:31]} 22. Rxe1 {[%emt 0:01:18]} Re8 {
[%emt 0:00:05]} 23. Rd1 {[%emt 0:03:36]} d5 {[%emt 0:00:38] La finale est plus
ou moins égale mais la majorité Blanche de l'aile-roi est peut-être
légèrement plus facile à valoriser} 24. c3 {[%emt 0:01:00]} Kc6 {[%emt 0:05:
01]} 25. Be3 {[%emt 0:15:07]} Bg8 $6 {[%emt 0:02:25]} 26. Kf3 {[%emt 0:03:19]}
b6 {[%emt 0:04:31]} 27. Rg1 $5 {[%emt 0:06:35][%cal Gh3h4,Gg4g5]} Bh7 {[%emt 0:
03:20] un plan passif mais qui empêche la poussée du P"g"} 28. h4 {[%emt 0:
02:31]} a5 {[%emt 0:05:00]} 29. h5 {[%emt 0:02:37][%csl Rg6,Rg7]} a4 {[%emt 0:
05:43]} 30. Rd1 {[%emt 0:05:08]} Bg8 {[%emt 0:04:53]} 31. Bf4 {[%emt 0:01:57]}
Bf7 {[%emt 0:00:32]} 32. Rd3 {[%emt 0:02:27]} Re1 {[%emt 0:05:53]} 33. Re3 $1 {
[%emt 0:02:01] Toutes les finales de B de couleurs opposées ne sont pas nulles
} Rf1+ {[%emt 0:00:27]} (33... Rxe3+ 34. Kxe3 $18 {[%csl Rg7][%cal Gf4e5]}) 34.
Kg3 {[%emt 0:00:02]} Rg1+ {[%emt 0:00:07]} 35. Kh3 {[%emt 0:01:17]} Rf1 $2 {
[%emt 0:00:29]} (35... d4 $142 36. cxd4 cxd4 37. Re7) 36. Be5 $40 {[%emt 0:01:
06]} Bxh5 $2 {[%emt 0:01:45]} 37. gxh5 {[%emt 0:00:23]} Rxf5 {[%emt 0:00:11]}
38. Kh4 {[%emt 0:01:23]} Rg5 {[%emt 0:02:23]} 39. Bg3 {[%emt 0:00:34]} d4 {
[%emt 0:01:09]} 40. cxd4 {[%emt 0:00:00]} cxd4 {[%emt 0:00:00]} 41. Re6+ {
[%emt 0:06:27]} Kd5 {[%emt 0:09:59]} 42. Rxb6 {[%emt 0:01:13]} d3 {[%emt 0:00:
08]} 43. Bf4 {[%emt 0:04:56]} (43. Ra6 Rxg3 $1 (43... d2 44. Rd6+) 44. Kxg3 d2
45. Ra8 Ke4 46. Rd8 Ke3) 43... Rg2 $4 {[%emt 0:02:12]} 44. Kh3 {[%emt 0:04:01]}
Rc2 {[%emt 0:03:02]} 45. Kg3 {[%emt 0:05:42]} Ke4 {[%emt 0:00:14]} 46. Rb4+ {
[%emt 0:03:46]} Kd5 {[%emt 0:03:29]} 47. Rb7 {[%emt 0:01:07]} Ke4 {[%emt 0:00:
33]} 48. Rb4+ {[%emt 0:03:09]} Kd5 {[%emt 0:00:11]} 49. Kf3 {[%emt 0:00:02]} d2
{[%emt 0:00:59]} 50. Ke2 1-0